fUSD/lending_fUSD_20240129
["ID","MTS","AMOUNT","RATE_DAILY","PERIOD"]
[312947449,1706493039057,-210.17866222,0.0003049,6]
[312947450,1706493039067,-206.9855647,0.0003049,6]
[312947451,1706493039076,-492.08282332,0.0003049,6]
[312947452,1706493039086,-664.38537978,0.0003049,6]
[312947453,1706493039094,-4617.99208343,0.0003049,6]
[312947454,1706493039103,-1000.0,0.0003049,7]
[312947455,1706493039111,-966.97489647,0.0003049,6]
[312947456,1706493039120,-1000.0,0.0003049,7]
[312947457,1706493039130,-1000.0,0.0003049,7]
[312947458,1706493039140,-1000.0,0.0003049,7]
[312947459,1706493039149,-1000.0,0.0003049,7]
[312947460,1706493039158,-362.99953,0.0003049,5]
[312947461,1706493039167,-248.21034982,0.0003049,5]
[312947462,1706493039176,-598.22143658,0.00030901,5]
[312947463,1706493039185,-700.0,0.00031,3]
[312947464,1706493039194,-191.122,0.00031514,2]
[312947465,1706493039203,-2278.788,0.00031514,2]
[312947466,1706493039212,-180.0,0.00031644,2]
[312947467,1706493039222,-1000.0,0.00031872,2]
[312947468,1706493039231,-295.18332124,0.00032,2]
[312947469,1706493039241,-1702.88044141,0.0003219,4]
[312947470,1706493039250,-202.14005141,0.000325,2]
[312947471,1706493039259,-750.0,0.00033,3]
[312947472,1706493039268,-153.12,0.00033166,2]
[312947473,1706493039278,-173.46,0.00033728,2]
[312947474,1706493039287,-490.28334114,0.00034,4]
[312947475,1706493039296,-150.90986219,0.00034,2]
[312947476,1706493039305,-260.0,0.00034433,5]
[312947477,1706493039315,-1702.88044141,0.00034436,6]
[312947478,1706493039324,-598.22143658,0.00034484,7]
[312947479,1706493039333,-16562.60026491,0.000345,2]
[312947480,1706493039343,-8863.24535411,0.000349,4]
[312947481,1706493039352,-514.43675876,0.000349,2]
[312947482,1706493039361,-514.43675869,0.000349,2]
[312947483,1706493039370,-5000.0,0.00035,3]
[312947484,1706493039379,-175.81144393,0.00035,2]
[312947485,1706493039389,-3546.29358837,0.00035,4]
[312947487,1706493039399,-1263.30372367,0.00035,4]
[312947488,1706493039408,-155.0,0.00035,2]
[312947489,1706493039417,-446.41778938,0.00035,4]
[312947490,1706493039426,-2709.00322691,0.00035,2]
[312947491,1706493039435,-164.72829057,0.00035,2]
[312947492,1706493039445,-170.87793367,0.00035,2]
[312947493,1706493039454,-1000.0,0.00035059,2]
[312947494,1706493039463,-514.43675869,0.00035199,2]
[312947495,1706493039473,-1313.09,0.000364,7]
[312947496,1706493039482,-1021.0,0.000364,7]
[312947497,1706493039491,-1702.88044141,0.00036681,9]
[312947498,1706493039500,-618.27,0.00036755,2]
[312947499,1706493039510,-150.0,0.000368,2]
[312947500,1706493039519,-151.26879161,0.000368,2]
[312947501,1706493039528,-1760.05973775,0.0003689,7]
[312947502,1706493039537,-250.0,0.000369,2]
[312947503,1706493039546,-1000.0,0.00037,15]
[312947504,1706493039555,-250.0,0.00037174,2]
[312947505,1706493039564,-2472.23,0.00037203,2]
[312947506,1706493039573,-415.65,0.0003726,2]
[312947507,1706493039582,-151.18947767,0.00037348,2]
[312947508,1706493039591,-250.0,0.00037448,2]
[312947509,1706493039601,-200.0,0.00037547,5]
[312947510,1706493039610,-153.27,0.000377,3]
[312947511,1706493039619,-153.27,0.000377,3]
[312947512,1706493039628,-153.27,0.000377,3]
[312947513,1706493039637,-153.27,0.000377,3]
[312947514,1706493039647,-153.27,0.000377,3]
[312947515,1706493039657,-153.27,0.000377,3]
[312947516,1706493039666,-153.27,0.000377,3]
[312947517,1706493039675,-153.27,0.000377,3]
[312947518,1706493039684,-153.27,0.000377,3]
[312947519,1706493039693,-153.27,0.000377,3]
[312947520,1706493039702,-153.27,0.000377,3]
[312947521,1706493039711,-153.27,0.000377,3]
[312947522,1706493039720,-153.27,0.000377,3]
[312947523,1706493039729,-153.27,0.000377,3]
[312947524,1706493039738,-153.27,0.000377,3]
[312947525,1706493039747,-153.27,0.000377,3]
[312947526,1706493039756,-3792.22839018,0.000377,3]
[312947527,1706493039765,-251.67421388,0.00037722,2]
[312947528,1706493039775,-9663.33531347,0.000378,2]
[312947529,1706493039784,-150.80193692,0.000378,28]
[312947530,1706493039793,-598.71592324,0.0003789,2]
[312947531,1706493039802,-168.38493381,0.00037897,2]
[312947532,1706493039811,-5718.82,0.000379,7]
[312947533,1706493039820,-1906.88,0.000379,7]
[312947534,1706493039829,-548.961229,0.000379,2]
[312947535,1706493039838,-10307.80702243,0.000379,2]
[312947536,1706493039847,-8381.51043624,0.000379,2]
[312947537,1706493039857,-8381.51043612,0.000379,2]
[312947538,1706493039866,-8381.51043612,0.000379,2]
[312947539,1706493039876,-8381.51043612,0.000379,2]
[312947540,1706493039885,-8381.51043612,0.000379,2]
[312947541,1706493040040,-8381.51043612,0.000379,2]
[312947542,1706493040050,-8381.51043612,0.000379,2]
[312947543,1706493040059,-8381.51043612,0.000379,2]
[312947544,1706493040069,-8381.51043612,0.000379,2]
[312947545,1706493040078,-8381.51043612,0.000379,2]
[312947546,1706493040088,-639740.905231,0.000379,3]
[312947547,1706493040097,-8381.51043612,0.000379,2]
[312947548,1706493040106,-8381.51043612,0.000379,2]
[312947549,1706493040116,-8381.51043612,0.000379,2]
[312947550,1706493040125,-8381.51043612,0.000379,2]
[312947551,1706493040134,-8381.51043612,0.000379,2]
[312947552,1706493040144,-8381.51043612,0.000379,2]
[312947553,1706493040153,-8381.51043612,0.000379,2]
[312947554,1706493040163,-8381.51043612,0.000379,2]
[312947555,1706493040173,-153.12,0.00037946,2]
[312947556,1706493040182,-1313.09,0.00038,7]
[312947557,1706493040191,-3963.189564,0.00038,21]
[312947558,1706493040201,-295.18,0.00038082,2]
[312947559,1706493040210,-646.11,0.00038082,2]
[312947560,1706493040220,-295.18,0.00038082,2]
[312947561,1706493040229,-295.18,0.00038082,2]
[312947562,1706493040239,-295.18,0.00038082,2]
[312947563,1706493040249,-295.18,0.00038082,2]
[312947564,1706493040258,-295.18,0.00038082,2]
[312947565,1706493040268,-295.18,0.00038082,2]
[312947566,1706493040277,-295.18,0.00038082,2]
[312947567,1706493040287,-298.19,0.00038082,2]
[312947568,1706493040297,-295.18,0.00038082,2]
[312947569,1706493040306,-295.18,0.00038082,2]
[312947570,1706493040315,-295.18,0.00038082,2]
[312947571,1706493040325,-295.18,0.00038082,2]
[312947572,1706493040334,-295.18,0.00038082,2]
[312947573,1706493040344,-295.18,0.00038082,2]
[312947574,1706493040353,-295.18,0.00038082,2]
[312947575,1706493040362,-295.18,0.00038082,2]
[312947576,1706493040372,-1000.0,0.00038246,2]
[312947577,1706493040381,-8381.51043612,0.0003829,2]
[312947578,1706493040391,-409.93816059,0.00038356,7]
[312947579,1706493040401,-227.0184459,0.00038356,7]
[312947580,1706493040410,-348.6426537,0.00038356,7]
[312947581,1706493040420,-212.91260593,0.00038356,7]
[312947582,1706493040429,-402.0,0.00038701,7]
[312947583,1706493040439,-219.0,0.00038701,7]
[312947584,1706493040448,-339.0,0.00038701,7]
[312947585,1706493040457,-150.0,0.00038701,7]
[312947586,1706493040466,-1571.22886935,0.0003888,2]
[312947587,1706493040476,-1571.22886932,0.0003888,2]
[312947588,1706493040485,-1571.22886932,0.0003888,2]
[312947589,1706493040495,-1571.22886932,0.0003888,2]
[312947590,1706493040504,-8381.51043612,0.000389,2]
[312947591,1706493040513,-500.0,0.00038904,2]
[312947592,1706493040523,-500.0,0.00038904,2]
[312947593,1706493040532,-500.0,0.00038904,2]
[312947594,1706493040542,-295.18,0.00038904,2]
[312947595,1706493040551,-295.18,0.00038904,2]
[312947596,1706493040561,-295.18,0.00038904,2]
[312947597,1706493040570,-295.18,0.00038904,2]
[312947598,1706493040580,-594.43,0.00038904,2]
[312947599,1706493040590,-283.49,0.00038904,2]
[312947600,1706493040599,-433.42,0.00038904,2]
[312947601,1706493040608,-493.63,0.00038904,2]
[312947602,1706493040618,-419.59,0.00038904,2]
[312947603,1706493040627,-340.99,0.00038904,2]
[312947604,1706493040637,-419.59,0.00038904,2]
[312947605,1706493040648,-340.99,0.00038904,2]
[312947606,1706493040657,-419.59,0.00038904,2]
[312947607,1706493040667,-1702.88044141,0.00038927,12]
[312947608,1706493040677,-514.43675869,0.00038949,2]
[312947609,1706493040686,-1571.22886932,0.00038998,2]
[312947610,1706493040696,-610.24980698,0.00039,2]
[312947611,1706493040705,-791.1238,0.00039,2]
[312947612,1706493040715,-159.90190889,0.00039,40]
[312947613,1706493040724,-402.0,0.00039046,7]
[312947614,1706493040734,-219.0,0.00039046,7]
[312947615,1706493040743,-339.0,0.00039046,7]
[312947616,1706493040752,-150.0,0.00039046,7]
[312947617,1706493040762,-262.48,0.00039178,2]
[312947618,1706493040771,-449.98,0.0003926,2]
[312947619,1706493040781,-150.0,0.000393,7]
[312947620,1706493040791,-402.0,0.00039392,7]
[312947621,1706493040800,-219.0,0.00039392,7]
[312947622,1706493040810,-339.0,0.00039392,7]
[312947623,1706493040819,-150.0,0.00039392,7]
[312947624,1706493040829,-1906.88,0.000394,7]
[312947625,1706493040838,-154.05485937,0.00039599,2]
[312947626,1706493040847,-5718.82,0.000396,7]
[312947627,1706493040857,-1313.09,0.000396,7]
[312947628,1706493040866,-4921.66884322,0.000396,2]
[312947629,1706493040876,-800.0,0.0003968,8]
[312947630,1706493040885,-372.81868344,0.00039709,2]
[312947631,1706493040900,-701.97737363,0.00039709,2]
[312947632,1706493040909,-150.0,0.00039718,2]
[312947633,1706493040918,-150.0,0.00039719,2]
[312947634,1706493040928,-150.0,0.00039722,2]
[312947635,1706493040938,-150.0,0.00039725,2]
[312947636,1706493040948,-419.59,0.00039726,2]
[312947637,1706493040957,-340.99,0.00039726,2]
[312947638,1706493040967,-419.59,0.00039726,2]
[312947639,1706493040976,-340.99,0.00039726,2]
[312947640,1706493040986,-419.59,0.00039726,2]
[312947641,1706493040995,-419.59,0.00039726,2]
[312947642,1706493041005,-340.99,0.00039726,2]
[312947643,1706493041014,-419.59,0.00039726,2]
[312947644,1706493041024,-340.99,0.00039726,2]
[312947645,1706493041033,-235.0,0.00039726,2]
[312947646,1706493041043,-340.99,0.00039726,2]
[312947647,1706493041052,-340.99,0.00039726,2]
[312947648,1706493041062,-839.18,0.00039726,2]
[312947649,1706493041073,-681.98,0.00039726,2]
[312947650,1706493041083,-150.0,0.00039729,2]
[312947651,1706493041093,-402.0,0.00039737,7]
[312947652,1706493041102,-219.0,0.00039737,7]
[312947653,1706493041111,-339.0,0.00039737,7]
[312947654,1706493041121,-150.0,0.00039737,7]
[312947655,1706493041130,-150.0,0.00039743,2]
[312947656,1706493041140,-150.0,0.00039744,2]
[312947657,1706493041153,-150.0,0.00039755,2]
[312947658,1706493041162,-150.0,0.00039768,2]
[312947659,1706493041172,-3684.64390745,0.000398,2]
[312947660,1706493041181,-194.65996241,0.00039801,2]
[312947662,1706493041191,-150.0,0.00039809,2]
[312947664,1706493041200,-302.63597908,0.00039851,2]
[312947666,1706493041210,-150.0,0.00039862,2]
[312947668,1706493041220,-150.0,0.00039885,2]
[312947669,1706493041230,-150.0,0.00039905,2]
[312947670,1706493041239,-151.40277149,0.00039911,2]
[312947671,1706493041249,-153.64125112,0.00039941,2]
[312947672,1706493041258,-150.0,0.00039942,2]
[312947673,1706493041268,-150.0,0.00039954,2]
[312947674,1706493041278,-150.0,0.00039983,2]
[312947675,1706493041288,-1198.34,0.00039989,10]
[312947676,1706493041298,-333.74145556,0.00039999,2]
[312947677,1706493041307,-500.0,0.00039999,31]
[312947678,1706493041317,-500.0,0.00039999,31]
[312947679,1706493041327,-500.0,0.00039999,31]
[312947680,1706493041336,-500.0,0.00039999,31]
[312947681,1706493041346,-450.05622953,0.00039999,31]
[312947682,1706493041355,-500.0,0.00039999,31]
[312947683,1706493041365,-350.00000001,0.00039999,31]
[312947684,1706493041375,-166.85409844,0.00039999,31]
[312947685,1706493041384,-5869.19614551,0.0004,4]
[312947686,1706493041396,-155.0,0.0004,4]
[312947687,1706493041405,-689.61162471,0.0004,2]
[312947688,1706493041414,-5000.0,0.0004,15]
[312947689,1706493041424,-1415.775564,0.0004,60]
[312947690,1706493041433,-49999.999999,0.0004,7]
[312947691,1706493041443,-581.353201,0.0004,15]
[312947692,1706493041453,-652.61772163,0.0004,2]
[312947693,1706493041462,-257.47055369,0.0004,4]
[312947694,1706493041472,-311.97223792,0.0004,30]
[312947695,1706493041481,-150.0,0.0004,2]
[312947696,1706493041491,-200.0,0.0004,2]
[312947697,1706493041500,-158.98,0.0004,30]
[312947698,1706493041510,-19058.7999444,0.0004001,2]
[312947699,1706493041520,-168.7047517,0.00040054,2]
[312947700,1706493041529,-180.4487921,0.00040054,2]
[312947701,1706493041539,-402.0,0.00040082,7]
[312947702,1706493041548,-219.0,0.00040082,7]
[312947703,1706493041557,-339.0,0.00040082,7]
[312947704,1706493041566,-150.0,0.00040082,7]
[312947705,1706493041576,-155.53007045,0.000403,4]
[312947706,1706493041586,-402.0,0.00040427,7]
[312947707,1706493041595,-219.0,0.00040427,7]
[312947708,1706493041605,-339.0,0.00040427,7]
[312947709,1706493041614,-150.0,0.00040427,7]
[312947710,1706493041623,-38353.67135288,0.000405,2]
[312947711,1706493041632,-1906.88,0.000405,7]
[312947712,1706493041644,-449.98,0.00040733,2]
[312947713,1706493041653,-402.0,0.00040772,7]
[312947714,1706493041662,-219.0,0.00040772,7]
[312947715,1706493041672,-339.0,0.00040772,7]
[312947716,1706493041681,-150.0,0.00040772,7]
[312947717,1706493041691,-5718.82,0.000408,7]
[312947718,1706493041701,-1313.09,0.000408,7]
[312947719,1706493041710,-50000.0,0.00041,21]
[312947720,1706493041719,-4000.0,0.00041,2]
[312947721,1706493041728,-150.0,0.00041096,2]
[312947722,1706493041737,-229.29,0.00041096,2]
[312947723,1706493041746,-180.23,0.00041096,2]
[312947724,1706493041755,-402.0,0.00041118,7]
[312947725,1706493041764,-219.0,0.00041118,7]
[312947726,1706493041774,-339.0,0.00041118,7]
[312947727,1706493041783,-1702.88044141,0.00041172,15]
[312947728,1706493041792,-409.72,0.0004137,2]
[312947729,1706493041802,-409.72,0.0004137,2]
[312947730,1706493041811,-409.72,0.0004137,2]
[312947731,1706493041820,-837.18,0.0004137,2]
[312947732,1706493041830,-590.36,0.0004137,2]
[312947733,1706493041839,-151.0129,0.00041418,18]
[312947734,1706493041848,-402.0,0.00041463,7]
[312947735,1706493041858,-219.0,0.00041463,7]
[312947736,1706493041867,-339.0,0.00041463,7]
[312947737,1706493041876,-151.0129,0.00041728,19]
[312947738,1706493041886,-205.9812625,0.000419,30]
[312947739,1706493041899,-1906.88,0.000419,7]
[312947740,1706493041910,-153.27,0.000419,4]
[312947741,1706493041919,-153.27,0.000419,4]
[312947742,1706493041928,-153.27,0.000419,4]
[312947743,1706493041938,-153.27,0.000419,4]
[312947744,1706493041948,-153.27,0.000419,4]
[312947745,1706493041957,-153.27,0.000419,4]
[312947746,1706493041968,-153.27,0.000419,4]
[312947747,1706493041977,-153.27,0.000419,4]
[312947748,1706493041987,-153.27,0.000419,4]
[312947749,1706493041998,-153.27,0.000419,4]
[312947750,1706493042007,-153.27,0.000419,4]
[312947751,1706493042017,-153.27,0.000419,4]
[312947752,1706493042027,-153.27,0.000419,4]
[312947753,1706493042037,-153.27,0.000419,4]
[312947754,1706493042046,-153.27,0.000419,4]
[312947755,1706493042056,-153.27,0.000419,4]
[312947756,1706493042066,-1571.22886932,0.00041918,4]
[312947757,1706493042076,-65469.89409532,0.00041921,30]
[312947758,1706493042086,-3530.0,0.0004199,2]
[312947759,1706493042095,-4221.0,0.0004199,2]
[312947760,1706493042105,-50000.0,0.00042,22]
[312947761,1706493042114,-8680.24827294,0.00042,2]
[312947762,1706493042123,-1739.72861687,0.00042,2]
[312947763,1706493042132,-2492.64136024,0.00042,30]
[312947764,1706493042143,-188.42601991,0.00042,120]
[312947765,1706493042152,-202.24279991,0.00042,2]
[312947766,1706493042161,-1291.34979306,0.0004201,2]
[312947767,1706493042169,-15345.1784064,0.00042063,2]
[312947768,1706493042178,-150.0,0.00042073,30]
[312947769,1706493042187,-160.91475168,0.00042089,3]
[312947770,1706493042196,-150.0,0.00042089,3]
[312947771,1706493042206,-55761.0,0.0004209,2]
[312947772,1706493042215,-30887.0,0.0004209,2]
[312947773,1706493042224,-11631.5568683,0.00042092,2]
[312947774,1706493042233,-3124.34573253,0.00042092,2]
[312947780,1706493042678,-387.33865923,0.00039989,10]
[312947781,1706493042709,-611.28134077,0.00039989,10]
[312947782,1706493042718,-4793.58959777,0.00042092,2]
[312947783,1706493042727,-168.7047517,0.00042092,2]
[312947784,1706493042736,-168.7047517,0.00042092,2]
[312947785,1706493042745,-168.7047517,0.00042092,2]
[312947786,1706493042754,-180.4487921,0.00042092,2]
[312947787,1706493042763,-180.4487921,0.00042092,2]
[312947788,1706493042773,-180.4487921,0.00042092,2]
[312947789,1706493042782,-152.737271,0.00042121,14]
[312947790,1706493042791,-151.00000078,0.00042121,14]
[312947791,1706493042800,-167.703478,0.00042121,14]
[312947792,1706493042809,-164.16199,0.00042121,14]
[312947793,1706493042819,-157.87094,0.00042121,14]
[312947794,1706493042827,-154.786812,0.00042121,14]
[312947795,1706493042839,-155.293097,0.00042121,14]
[312947796,1706493042848,-215.648115,0.00042121,14]
[312947797,1706493042857,-151.0,0.00042121,14]
[312947798,1706493042866,-151.0,0.00042121,14]
[312947799,1706493042876,-157.279191,0.00042121,14]
[312947800,1706493042885,-294.50758,0.00042121,14]
[312947801,1706493042896,-157.065536,0.00042121,14]
[312947802,1706493042906,-199.726027,0.00042121,14]
[312947803,1706493042916,-151.0,0.00042121,14]
[312947804,1706493042925,-151.0,0.00042121,14]
[312947805,1706493042935,-157.497604,0.00042121,14]
[312947806,1706493042944,-151.0,0.00042121,14]
[312947807,1706493042954,-151.0,0.00042121,14]
[312947808,1706493042963,-151.0,0.00042121,14]
[312947809,1706493042972,-151.0,0.00042121,14]
[312947810,1706493042981,-62886.57573412,0.00042121,2]
[312947811,1706493042993,-25854.77141964,0.00042121,2]
[312947812,1706493043003,-14326.47456205,0.00042121,2]
[312947813,1706493043012,-6000.0,0.00042121,2]
[312947814,1706493043022,-683.88071166,0.00042121,2]
[312947815,1706493043031,-14018.17652763,0.00042121,2]
[312947816,1706493043040,-341.47371178,0.00042121,2]
[312947817,1706493043049,-200.0,0.00042121,2]
[312947818,1706493043058,-625.96425458,0.00042121,2]
[312947819,1706493043067,-600.38356901,0.00042121,2]
[312947820,1706493043076,-205.86337129,0.00042121,2]
[312947821,1706493043086,-147053.26784076,0.00042121,2]
[312947822,1706493043095,-430.35976046,0.00042121,2]
[312947823,1706493043104,-1022.60404595,0.00042121,2]
[312947824,1706493043113,-20363.43861946,0.00042121,2]
[312947825,1706493043122,-4331.92602408,0.00042121,2]
[312947826,1706493043131,-2500.0,0.00042121,2]
[312947827,1706493043140,-555.35244379,0.00042121,2]
[312947828,1706493043150,-26643.59483703,0.00042121,2]
[312947829,1706493043159,-2281.13346395,0.00042121,2]
[312947830,1706493043168,-230.77392422,0.00042121,2]
[312947831,1706493043177,-1576.12121292,0.00042121,2]
[312947832,1706493043187,-516.76088003,0.00042121,2]
[312947833,1706493043196,-157261.36184362,0.00042121,2]
[312947865,1706493045780,-295.18,0.00038082,2]
[312947867,1706493045790,-150.80193688,0.0004145,34]
[312947869,1706493045799,-240.35406312,0.00042121,2]
[312947871,1706493045811,-6070.51464648,0.00042121,2]
[312947874,1706493045822,-1982.9641444,0.00042121,2]
[312947877,1706493045843,-2746.1399994,0.00042121,2]
[312947881,1706493046042,-343.60980816,0.00042121,2]
[312947887,1706493095523,25.05887697,0.0002162,2]
[312947888,1706493095549,8688.49887697,0.0002162,2]
[312947889,1706493095574,8688.49887697,0.0002162,2]
[312947890,1706493095600,5622.19280009,0.0002162,2]
[312947893,1706493711359,160.67,0.00020146,2]
[312947925,1706494231829,-457.85527997,0.0002171,2]
[312947931,1706494231885,-368.70472003,0.0002171,2]
[312947932,1706494231895,-14.71203896,0.00021732,2]
[312947933,1706494231942,-481.46909382,0.00021732,2]
[312947934,1706494231951,-326.04488509,0.00021793,2]
[312947935,1706494231962,-170.13624751,0.00021793,2]
[312947936,1706494231973,-392.23021965,0.00021831,2]
[312947937,1706494232001,-1866.82408911,0.00021831,2]
[312947938,1706494232010,-222.32591089,0.00021832,2]
[312947939,1706494232025,-420.45166983,0.00021832,2]
[312947940,1706494232112,-118.27241928,0.00021832,2]
[312947941,1706494232120,-500.0,0.00021853,2]
[312947942,1706494232129,-261.11019764,0.00021855,2]
[312947943,1706494232142,-235.07093496,0.00021855,2]
[312947944,1706494232151,-176.69,0.00021899,2]
[312947945,1706494232161,-17.17351276,0.00021916,2]
[312947946,1706494232173,-479.00761984,0.00021916,2]
[312947948,1706494232182,-496.1811326,0.00021978,2]
[312947950,1706494232191,-167.38,0.00021991,2]
[312947951,1706494232200,-586.96414624,0.00021999,2]
[312947952,1706494232210,-250.0,0.00022,2]
[312947953,1706494232219,-150.0,0.00022,2]
[312947954,1706494232228,-151.26879161,0.00022,2]
[312947955,1706494232237,-163.94391763,0.00022,2]
[312947956,1706494232249,-336.05608237,0.00022,2]
[312947957,1706494232259,-150.90986219,0.00022,2]
[312947958,1706494232269,-3712.94,0.00022027,2]
[312947959,1706494232279,-499.99,0.00022027,2]
[312947960,1706494232288,-496.1811326,0.00022039,2]
[312947961,1706494232297,-164.22,0.00022092,2]
[312947962,1706494232306,-496.1811326,0.00022101,2]
[312947963,1706494232315,-496.1811326,0.00022162,2]
[312947964,1706494232324,-496.1811326,0.00022224,2]
[312947965,1706494232333,-250.0,0.00022274,2]
[312947966,1706494232343,-496.1811326,0.00022285,2]
[312947967,1706494232353,-180.86096353,0.00022447,2]
[312947968,1706494232362,-250.0,0.00022548,2]
[312947969,1706494232371,-151.18947767,0.00022548,2]
[312947970,1706494232380,-502.89110408,0.00022548,2]
[312947971,1706494232389,-1000.0,0.00022567,2]
[312947972,1706494232399,-868.83902701,0.00022568,2]
[312947973,1706494232408,-399.14394883,0.00022657,2]
[312947974,1706494232417,-304.04616386,0.00022666,2]
[312947975,1706494232427,-203944.4912109,0.00022667,2]
[312947978,1706494237865,-496.1811326,0.00022347,2]
[312947979,1706494237875,-496.1811326,0.00022408,2]
[312947980,1706494237885,-11714.21924577,0.00022667,2]
[312947981,1706494237897,-342.7500003,0.00022667,2]
[312947982,1706494237908,-79951.09891425,0.00022667,2]
[312947983,1706494237928,-763381.33135733,0.00022667,2]
[312947984,1706494237938,-437849.2533,0.00022668,2]
[312947985,1706494237947,-6296.0143,0.00022699,2]
[312947986,1706494237956,-206.3669,0.00022699,2]
[312947987,1706494237966,-2500.0,0.000227,2]
[312947988,1706494237974,-20921.8433302,0.00022768,2]
[312947989,1706494237984,-1535.8,0.00022798,2]
[312947990,1706494237993,-9114.9374,0.00022799,2]
[312947991,1706494238002,-4627.9433,0.00022799,2]
[312947992,1706494238012,-15596.1237,0.00022799,2]
[312947993,1706494238021,-16138.0667,0.00022799,2]
[312947994,1706494238030,-417.2302,0.00022799,2]
[312947995,1706494238040,-12012.3701,0.00022799,2]
[312947996,1706494238050,-41359.7416,0.00022799,2]
[312947997,1706494238059,-3301.51526173,0.000228,2]
[312947998,1706494238069,-196.34583763,0.000228,2]
[312947999,1706494238078,-182.98628196,0.000228,2]
[312948000,1706494238087,-152.26233701,0.000228,2]
[312948001,1706494238096,-372.81868345,0.000228,2]
[312948002,1706494238106,-3684.64390746,0.000228,2]
[312948003,1706494238115,-251.67421388,0.00022822,2]
[312948004,1706494238125,-171.91545079,0.0002289,2]
[312948005,1706494238135,-701.97737365,0.0002289,2]
[312948006,1706494238145,-4938.7382,0.00022899,2]
[312948007,1706494238154,-5000.0,0.00022899,2]
[312948008,1706494238163,-6695.92,0.00022899,2]
[312948009,1706494238173,-9663.33531347,0.000229,2]
[312948010,1706494238182,-4936.9285,0.000229,2]
[312948011,1706494238192,-1000.0,0.000229,2]
[312948012,1706494238203,-159.70180211,0.000229,2]
[312948013,1706494238212,-399.14394883,0.0002299,2]
[312948014,1706494238222,-399.14394883,0.0002299,2]
[312948015,1706494238231,-155.19414547,0.00022998,2]
[312948016,1706494238241,-2798.55571451,0.00022998,2]
[312948017,1706494238250,-1244.35715284,0.00022998,2]
[312948019,1706494238262,-156.1233509,0.00022998,2]
[312948021,1706494238273,-276.77902824,0.00022998,2]
[312948023,1706494238282,-155.9432364,0.00022998,2]
[312948025,1706494238292,-1157.78484489,0.00022998,2]
[312948027,1706494238302,-165.71363321,0.00022998,2]
[312948029,1706494238311,-163.00902387,0.00022998,2]
[312948031,1706494238321,-156.4696179,0.00022998,2]
[312948033,1706494238330,-155.9253189,0.00022998,2]
[312948034,1706494238340,-155.31452068,0.00022998,2]
[312948036,1706494238353,-155.3207105,0.00022998,2]
[312948037,1706494238363,-4011.42761733,0.00022998,2]
[312948038,1706494238373,-155.3324332,0.00022998,2]
[312948039,1706494238382,-213.91996154,0.00022998,2]
[312948040,1706494238392,-762.93898325,0.00022998,2]
[312948041,1706494238404,-447.92467912,0.00022998,2]
[312948042,1706494238413,-290.53357345,0.00022998,2]
[312948043,1706494238423,-525.84319324,0.00022998,2]
[312948044,1706494238433,-204.10864434,0.00022998,2]
[312948045,1706494238442,-2373.4549204,0.00022998,2]
[312948046,1706494238452,-530.71516354,0.00022998,2]
[312948047,1706494238461,-176.52339691,0.00022998,2]
[312948048,1706494238470,-3047.11172946,0.00022998,2]
[312948049,1706494238480,-30612.63569533,0.00022998,2]
[312948050,1706494238489,-2789.00729357,0.00022998,2]
[312948051,1706494238498,-155.38469444,0.00022998,2]
[312948052,1706494238507,-2149.12135113,0.00022998,2]
[312948053,1706494238517,-544.94809889,0.00022998,2]
[312948054,1706494238526,-155.44258944,0.00022998,2]
[312948055,1706494238535,-155.41897841,0.00022998,2]